fUSD/lending_fUSD_20250807
["ID","MTS","AMOUNT","RATE_DAILY","PERIOD"]
[377884901,1754597451335,-656.54,0.00019178,2]
[377884903,1754597451344,-692.92,0.00019178,2]
[377884905,1754597451353,-407.58,0.00019178,2]
[377884907,1754597451363,-692.92,0.00019178,2]
[377884909,1754597451371,-541.16,0.00019178,2]
[377884911,1754597451380,-400.0,0.00019178,2]
[377884913,1754597451390,-400.0,0.00019178,2]
[377884915,1754597451399,-409.07188858,0.00019178,2]
[377884917,1754597451408,-1368.4,0.00019178,2]
[377884919,1754597451417,-607.79,0.00019178,2]
[377884921,1754597451426,-1148.57,0.00019178,2]
[377884923,1754597451435,-400.0,0.00019178,2]
[377884925,1754597451444,-400.0,0.00019178,2]
[377884927,1754597451454,-416.57,0.00019178,2]
[377884929,1754597451464,-400.0,0.00019178,2]
[377884931,1754597451473,-445.67,0.00019178,2]
[377884933,1754597451482,-490.06,0.00019178,2]
[377884935,1754597451491,-400.0,0.00019178,2]
[377884937,1754597451499,-400.0,0.00019178,2]
[377884939,1754597451508,-400.0,0.00019178,2]
[377884941,1754597451518,-400.0,0.00019178,2]
[377884943,1754597451527,-2589.02,0.00019178,2]
[377884945,1754597451537,-400.0,0.00019178,2]
[377884947,1754597451546,-413.14,0.00019178,2]
[377884949,1754597451555,-1567.82,0.00019178,2]
[377884951,1754597451564,-1522.72,0.00019178,2]
[377884962,1754597451666,-1524.59,0.00019178,2]
[377884964,1754597451676,-896.26,0.00019178,2]
[377884966,1754597451685,-400.0,0.00019178,2]
[377884968,1754597451695,-400.0,0.00019178,2]
[377884970,1754597451705,-400.0,0.00019178,2]
[377884972,1754597451714,-400.0,0.00019178,2]
[377884974,1754597451723,-400.0,0.00019178,2]
[377884976,1754597451732,-780.55,0.00019178,2]
[377884978,1754597451740,-400.0,0.00019178,2]
[377884980,1754597451750,-557.93,0.00019178,2]
[377884982,1754597451759,-584.85,0.00019178,2]
[377884984,1754597451767,-400.0,0.00019178,2]
[377884986,1754597451776,-400.0,0.00019178,2]
[377884988,1754597451785,-1175.55,0.00019178,2]
[377884990,1754597451794,-832.59,0.00019178,2]
[377884992,1754597451803,-482.65,0.00019178,2]
[377884994,1754597451812,-1288.23,0.00019178,2]
[377884996,1754597451822,-400.0,0.00019178,2]
[377884998,1754597451831,-752.14,0.00019178,2]
[377885000,1754597451839,-400.0,0.00019178,2]
[377885002,1754597451848,-400.0,0.00019178,2]
[377885004,1754597451858,-1542.51,0.00019178,2]
[377885006,1754597451867,-400.0,0.00019178,2]
[377885008,1754597451876,-400.0,0.00019178,2]
[377885010,1754597451885,-460.93,0.00019178,2]
[377885012,1754597451894,-400.0,0.00019178,2]
[377885014,1754597451904,-1162.63,0.00019178,2]
[377885016,1754597451913,-400.0,0.00019178,2]
[377885018,1754597451922,-1609.53,0.00019178,2]
[377885020,1754597451931,-400.0,0.00019178,2]
[377885022,1754597451940,-400.0,0.00019178,2]
[377885024,1754597451950,-400.0,0.00019178,2]
[377885025,1754597451959,-400.0,0.00019178,2]
[377885027,1754597451968,-400.0,0.00019178,2]
[377885030,1754597451977,-272.57966955,0.00019178,2]
[377885031,1754597451987,-1067.21,0.00019178,2]
[377885034,1754597451996,-1006.03,0.00019178,2]
[377885035,1754597452005,-763.06,0.00019178,2]
[377885037,1754597452015,-678.08,0.00019178,2]
[377885040,1754597452024,-400.0,0.00019178,2]
[377885042,1754597452033,-400.0,0.00019178,2]
[377885043,1754597452042,-535.7037341,0.00019178,2]
[377885045,1754597452052,-1020.71,0.00019178,2]
[377885047,1754597452062,-1684.85,0.00019178,2]
[377885049,1754597452072,-400.55,0.00019178,2]
[377885052,1754597452082,-400.0,0.00019178,2]
[377885054,1754597452091,-400.0,0.00019178,2]
[377885055,1754597452100,-1658.61,0.00019178,2]
[377885058,1754597452110,-400.0,0.00019178,2]
[377885059,1754597452119,-400.0,0.00019178,2]
[377885061,1754597452129,-400.0,0.00019178,2]
[377885064,1754597452138,-400.0,0.00019178,2]
[377885066,1754597452148,-1324.77,0.00019178,2]
[377885067,1754597452158,-1077.7,0.00019178,2]
[377885070,1754597452168,-400.0,0.00019178,2]
[377885072,1754597452179,-3271.36,0.00019178,2]
[377885074,1754597452189,-400.0,0.00019178,2]
[377885076,1754597452198,-453.36,0.00019178,2]
[377885077,1754597452208,-400.0,0.00019178,2]
[377885079,1754597452217,-400.0,0.00019178,2]
[377885081,1754597452227,-400.0,0.00019178,2]
[377885084,1754597452236,-990.62,0.00019178,2]
[377885085,1754597452245,-400.0,0.00019178,2]
[377885087,1754597452255,-247.57973329,0.00019178,2]
[377885089,1754597452264,-400.0,0.00019178,2]
[377885091,1754597452273,-881.85,0.00019178,2]
[377885093,1754597452283,-1191.82,0.00019178,2]
[377885095,1754597452292,-400.0,0.00019178,2]
[377885097,1754597452301,-1102.35,0.00019178,2]
[377885099,1754597452311,-1734.22,0.00019178,2]
[377885101,1754597452320,-2141.12,0.00019178,2]
[377885103,1754597452329,-400.0,0.00019178,2]
[377885105,1754597452338,-400.0,0.00019178,2]
[377885107,1754597452348,-2584.61,0.00019178,2]
[377885110,1754597452357,-400.0,0.00019178,2]
[377885111,1754597452366,-400.0,0.00019178,2]
[377885113,1754597452375,-400.0,0.00019178,2]
[377885116,1754597452384,-624.99,0.00019178,2]
[377885118,1754597452393,-400.0,0.00019178,2]
[377885120,1754597452403,-400.0,0.00019178,2]
[377885121,1754597452412,-2107.05,0.00019178,2]
[377885123,1754597452421,-400.0,0.00019178,2]
[377885125,1754597452430,-400.0,0.00019178,2]
[377885127,1754597452439,-400.0,0.00019178,2]
[377885130,1754597452448,-1031.18,0.00019178,2]
[377885131,1754597452460,-400.0,0.00019178,2]
[377885133,1754597452470,-546.68,0.00019178,2]
[377885136,1754597452479,-400.0,0.00019178,2]
[377885137,1754597452488,-1000.0,0.00019178,2]
[377885139,1754597452497,-1000.0,0.00019178,2]
[377885141,1754597452507,-1000.0,0.00019178,2]
[377885143,1754597452516,-400.0,0.00019178,2]
[377885145,1754597452525,-154.37411494,0.00019178,2]
[377885147,1754597452535,-1000.0,0.00019178,2]
[377885149,1754597452544,-1000.0,0.00019178,2]
[377885151,1754597452554,-1000.0,0.00019178,2]
[377885153,1754597452563,-1000.0,0.00019178,2]
[377885155,1754597452574,-1000.0,0.00019178,2]
[377885158,1754597452584,-1000.0,0.00019178,2]
[377885159,1754597452603,-1000.0,0.00019178,2]
[377885162,1754597452616,-1000.0,0.00019178,2]
[377885163,1754597452626,-1000.0,0.00019178,2]
[377885166,1754597452635,-151.0,0.00019178,2]
[377885168,1754597452645,-151.0,0.00019178,2]
[377885169,1754597452655,-400.0,0.00019178,2]
[377885171,1754597452664,-151.0,0.00019178,2]
[377885174,1754597452674,-495.63,0.00019178,2]
[377885176,1754597452683,-400.0,0.00019178,2]
[377885177,1754597452695,-400.0,0.00019178,2]
[377885179,1754597452706,-400.0,0.00019178,2]
[377885182,1754597452716,-1000.0,0.00019178,2]
[377885183,1754597452726,-1000.0,0.00019178,2]
[377885186,1754597452735,-400.0,0.00019178,2]
[377885187,1754597452744,-648.9,0.00019178,2]
[377885189,1754597452753,-812.59,0.00019178,2]
[377885191,1754597452762,-528.0,0.00019178,2]
[377885193,1754597452771,-400.0,0.00019178,2]
[377885195,1754597452781,-588.63,0.00019178,2]
[377885197,1754597452790,-400.0,0.00019178,2]
[377885199,1754597452799,-1643.86,0.00019178,2]
[377885201,1754597452808,-657.04,0.00019178,2]
[377885203,1754597452817,-1628.14,0.00019178,2]
[377885205,1754597452827,-400.0,0.00019178,2]
[377885207,1754597452835,-400.0,0.00019178,2]
[377885209,1754597452845,-1205.6,0.00019178,2]
[377885211,1754597452854,-400.0,0.00019178,2]
[377885213,1754597452863,-400.0,0.00019178,2]
[377885215,1754597452872,-1117.93,0.00019178,2]
[377885217,1754597452881,-2457.55,0.00019178,2]
[377885219,1754597452890,-400.6320608,0.00019178,2]
[377885221,1754597452899,-400.0,0.00019178,2]
[377885223,1754597452908,-400.0,0.00019178,2]
[377885225,1754597452917,-3152.04,0.00019178,2]
[377885227,1754597452926,-400.0,0.00019178,2]
[377885229,1754597452935,-1286.26,0.00019178,2]
[377885231,1754597452944,-461.51927522,0.00019178,2]
[377885233,1754597452955,-1959.67,0.00019178,2]
[377885235,1754597452965,-766.93,0.00019178,2]
[377885237,1754597452974,-400.0,0.00019178,2]
[377885239,1754597452983,-400.0,0.00019178,2]
[377885241,1754597452992,-1439.53,0.00019178,2]
[377885243,1754597453001,-1501.86,0.00019178,2]
[377885245,1754597453010,-1713.39,0.00019178,2]
[377885247,1754597453019,-400.0,0.00019178,2]
[377885249,1754597453029,-500.0,0.00019178,2]
[377885251,1754597453038,-500.0,0.00019178,2]
[377885253,1754597453047,-400.0,0.00019178,2]
[377885255,1754597453056,-1771.74,0.00019178,2]
[377885257,1754597453067,-500.0,0.00019178,2]
[377885259,1754597453077,-500.0,0.00019178,2]
[377885261,1754597453087,-1339.27,0.00019178,2]
[377885263,1754597453096,-500.0,0.00019178,2]
[377885265,1754597453105,-500.0,0.00019178,2]
[377885267,1754597453115,-500.0,0.00019178,2]
[377885269,1754597453125,-500.0,0.00019178,2]
[377885272,1754597453134,-500.0,0.00019178,2]
[377885274,1754597453146,-500.0,0.00019178,2]
[377885276,1754597453156,-500.0,0.00019178,2]
[377885277,1754597453165,-500.0,0.00019178,2]
[377885279,1754597453175,-664.05,0.00019178,2]
[377885282,1754597453186,-400.0,0.00019178,2]
[377885283,1754597453195,-400.0,0.00019178,2]
[377885285,1754597453206,-400.0,0.00019178,2]
[377885287,1754597453216,-500.0,0.00019178,2]
[377885290,1754597453226,-500.0,0.00019178,2]
[377885292,1754597453235,-500.0,0.00019178,2]
[377885294,1754597453245,-500.0,0.00019178,2]
[377885296,1754597453254,-403.55329922,0.00019178,2]
[377885297,1754597453263,-730.28,0.00019178,2]
[377885299,1754597453272,-904.66,0.00019178,2]
[377885302,1754597453282,-400.0,0.00019178,2]
[377885303,1754597453291,-1699.0,0.00019178,2]
[377885305,1754597453301,-400.0,0.00019178,2]
[377885307,1754597453310,-1324.69,0.00019178,2]
[377885310,1754597453320,-500.0,0.00019178,2]
[377885311,1754597453329,-717.37,0.00019178,2]
[377885313,1754597453339,-500.0,0.00019178,2]
[377885315,1754597453348,-400.0,0.00019178,2]
[377885317,1754597453357,-500.0,0.00019178,2]
[377885319,1754597453367,-500.0,0.00019178,2]
[377885321,1754597453376,-500.0,0.00019178,2]
[377885323,1754597453386,-500.0,0.00019178,2]
[377885325,1754597453396,-400.0,0.00019178,2]
[377885327,1754597453405,-500.0,0.00019178,2]
[377885329,1754597453415,-665.33,0.00019178,2]
[377885331,1754597453424,-500.0,0.00019178,2]
[377885333,1754597453434,-11830.98,0.00019178,2]
[377885335,1754597453443,-1015.76,0.00019178,2]
[377885337,1754597453453,-500.0,0.00019178,2]
[377885339,1754597453463,-1015.76,0.00019178,2]
[377885341,1754597453476,-730.97,0.00019178,2]
[377885343,1754597453490,-1015.76,0.00019178,2]
[377885345,1754597453500,-1015.76,0.00019178,2]
[377885347,1754597453509,-400.0,0.00019178,2]
[377885349,1754597453517,-400.0,0.00019178,2]
[377885351,1754597453527,-1015.76,0.00019178,2]
[377885353,1754597453536,-1015.76,0.00019178,2]
[377885355,1754597453545,-1015.76,0.00019178,2]
[377885357,1754597453555,-400.0,0.00019178,2]
[377885359,1754597453564,-1015.76,0.00019178,2]
[377885361,1754597453573,-1015.76,0.00019178,2]
[377885363,1754597453583,-1015.76,0.00019178,2]
[377885365,1754597453592,-1015.76,0.00019178,2]
[377885367,1754597453601,-1015.76,0.00019178,2]
[377885369,1754597453612,-1015.76,0.00019178,2]
[377885371,1754597453622,-400.0,0.00019178,2]
[377885372,1754597453631,-755.94,0.00019178,2]
[377885373,1754597453640,-400.0,0.00019178,2]
[377885374,1754597453651,-998.01,0.00019178,2]
[377885375,1754597453660,-2094.74,0.00019178,2]
[377885377,1754597453669,-400.0,0.00019178,2]
[377885379,1754597453678,-400.0,0.00019178,2]
[377885381,1754597453687,-1746.23,0.00019178,2]
[377885383,1754597453697,-2208.52,0.00019178,2]
[377885385,1754597453707,-1325.21,0.00019178,2]
[377885387,1754597453717,-2210.42,0.00019178,2]
[377885389,1754597453726,-1824.61,0.00019178,2]
[377885391,1754597453735,-400.0,0.00019178,2]
[377885393,1754597453744,-400.0,0.00019178,2]
[377885395,1754597453753,-1304.27,0.00019178,2]
[377885397,1754597453762,-400.0,0.00019178,2]
[377885399,1754597453771,-400.0,0.00019178,2]
[377885401,1754597453780,-400.0,0.00019178,2]
[377885403,1754597453789,-400.0,0.00019178,2]
[377885405,1754597453798,-400.0,0.00019178,2]
[377885407,1754597453807,-1406.86,0.00019178,2]
[377885408,1754597453816,-400.0,0.00019178,2]
[377885411,1754597453826,-808.08,0.00019178,2]
[377885413,1754597453835,-1323.42,0.00019178,2]
[377885415,1754597453844,-2098.14,0.00019178,2]
[377885416,1754597453853,-400.0,0.00019178,2]
[377885418,1754597453862,-1566.45,0.00019178,2]
[377885420,1754597453872,-400.0,0.00019178,2]
[377885422,1754597453881,-953.11,0.00019178,2]
[377885425,1754597453890,-190.51895609,0.00019178,2]
[377885426,1754597453900,-448.48,0.00019178,2]
[377885428,1754597453909,-1597.94,0.00019178,2]
[377885430,1754597453919,-423.3,0.00019178,2]
[377885432,1754597453928,-400.0,0.00019178,2]
[377885435,1754597453938,-400.0,0.00019178,2]
[377885436,1754597453948,-1862.35,0.00019178,2]
[377885438,1754597453957,-400.0,0.00019178,2]
[377885440,1754597453967,-1083.19,0.00019178,2]
[377885442,1754597453976,-786.59,0.00019178,2]
[377885445,1754597453985,-400.0,0.00019178,2]
[377885447,1754597453995,-562.39,0.00019178,2]
[377885448,1754597454004,-931.4,0.00019178,2]
[377885450,1754597454013,-400.0,0.00019178,2]
[377885452,1754597454022,-2514.15,0.00019178,2]
[377885454,1754597454031,-400.0,0.00019178,2]
[377885457,1754597454041,-378.38720172,0.00019178,2]
[377885458,1754597454050,-151.0,0.00019178,2]
[377885461,1754597454060,-2982.67,0.00019178,2]
[377885462,1754597454070,-1969.37,0.00019178,2]
[377885464,1754597454079,-151.0,0.00019178,2]
[377885466,1754597454089,-2713.66,0.00019178,2]
[377885468,1754597454098,-151.0,0.00019178,2]
[377885470,1754597454107,-400.0,0.00019178,2]
[377885472,1754597454117,-151.0,0.00019178,2]
[377885474,1754597454126,-400.0,0.00019178,2]
[377885476,1754597454135,-151.0,0.00019178,2]
[377885478,1754597454145,-862.93,0.00019178,2]
[377885480,1754597454155,-486.79,0.00019178,2]
[377885482,1754597454165,-400.0,0.00019178,2]
[377885484,1754597454175,-542.79179283,0.00019178,2]
[377885486,1754597454184,-400.0,0.00019178,2]
[377885488,1754597454194,-1537.71,0.00019178,2]
[377885490,1754597454203,-484.67,0.00019178,2]
[377885493,1754597454213,-1566.1,0.00019178,2]
[377885494,1754597454223,-889.01,0.00019178,2]
[377885496,1754597454232,-969.96,0.00019178,2]
[377885498,1754597454242,-400.0,0.00019178,2]
[377885501,1754597454252,-574.8,0.00019178,2]
[377885503,1754597454262,-468.77,0.00019178,2]
[377885505,1754597454272,-400.0,0.00019178,2]
[377885507,1754597454282,-400.0,0.00019178,2]
[377885509,1754597454291,-755.82,0.00019178,2]
[377885511,1754597454300,-1395.41,0.00019178,2]
[377885512,1754597454310,-400.0,0.00019178,2]
[377885514,1754597454319,-736.3,0.00019178,2]
[377885517,1754597454328,-894.38,0.00019178,2]
[377885518,1754597454338,-400.69085576,0.00019178,2]
[377885520,1754597454348,-400.0,0.00019178,2]
[377885523,1754597454358,-308.97820053,0.00019178,2]
[377885524,1754597454367,-400.0,0.00019178,2]
[377885527,1754597454377,-400.0,0.00019178,2]
[377885528,1754597454386,-444.28,0.00019178,2]
[377885531,1754597454396,-400.0,0.00019178,2]
[377885533,1754597454405,-400.0,0.00019178,2]
[377885535,1754597454415,-1127.48,0.00019178,2]
[377885536,1754597454424,-400.0,0.00019178,2]
[377885538,1754597454433,-400.0,0.00019178,2]
[377885541,1754597454442,-3304.81,0.00019178,2]
[377885543,1754597454452,-646.24,0.00019178,2]
[377885544,1754597454462,-594.29,0.00019178,2]
[377885546,1754597454471,-745.76,0.00019178,2]
[377885548,1754597454480,-416.39,0.00019178,2]
[377885550,1754597454490,-400.0,0.00019178,2]
[377885553,1754597454499,-400.0,0.00019178,2]
[377885555,1754597454508,-400.0,0.00019178,2]
[377885557,1754597454518,-400.0,0.00019178,2]
[377885559,1754597454527,-1596.26,0.00019178,2]
[377885561,1754597454537,-400.0,0.00019178,2]
[377885563,1754597454546,-767.79,0.00019178,2]
[377885565,1754597454555,-400.0,0.00019178,2]
[377885567,1754597454565,-649.77,0.00019178,2]
[377885569,1754597454574,-468.32,0.00019178,2]
[377885570,1754597454584,-400.0,0.00019178,2]
[377885572,1754597454593,-1197.85,0.00019178,2]
[377885575,1754597454603,-400.0,0.00019178,2]
[377885577,1754597454614,-890.68,0.00019178,2]
[377885578,1754597454626,-400.0,0.00019178,2]
[377885581,1754597454635,-1308.8,0.00019178,2]
[377885583,1754597454644,-400.0,0.00019178,2]
[377885585,1754597454655,-400.0,0.00019178,2]
[377885587,1754597454666,-151.0,0.00019178,2]
[377885589,1754597454675,-1419.78,0.00019178,2]
[377885591,1754597454684,-151.0,0.00019178,2]
[377885593,1754597454693,-2005.43,0.00019178,2]
[377885595,1754597454703,-400.0,0.00019178,2]
[377885596,1754597454713,-151.0,0.00019178,2]
[377885599,1754597454722,-405.86,0.00019178,2]
[377885601,1754597454731,-2041.98,0.00019178,2]
[377885603,1754597454741,-151.0,0.00019178,2]
[377885605,1754597454750,-1466.04,0.00019178,2]
[377885607,1754597454759,-1849.02,0.00019178,2]
[377885609,1754597454768,-278.129034,0.00019178,2]
[377885611,1754597454777,-1104.83,0.00019178,2]
[377885613,1754597454787,-400.0,0.00019178,2]
[377885614,1754597454796,-400.0,0.00019178,2]
[377885616,1754597454805,-400.0,0.00019178,2]
[377885619,1754597454814,-580.02,0.00019178,2]
[377885621,1754597454823,-1080.22,0.00019178,2]
[377885623,1754597454832,-733.86,0.00019178,2]
[377885625,1754597454841,-423.34,0.00019178,2]
[377885627,1754597454850,-2415.74,0.00019178,2]
[377885629,1754597454859,-1998.64,0.00019178,2]
[377885631,1754597454868,-2103.04,0.00019178,2]
[377885633,1754597454877,-1196.69,0.00019178,2]
[377885635,1754597454886,-1803.03,0.00019178,2]
[377885637,1754597454895,-400.0,0.00019178,2]
[377885639,1754597454905,-400.0,0.00019178,2]
[377885641,1754597454914,-7676.24619266,0.00019178,2]
[377885643,1754597454923,-1627.16,0.00019178,2]
[377885645,1754597454932,-400.0,0.00019178,2]
[377885647,1754597454941,-460.0,0.00019178,2]
[377885648,1754597454951,-400.0,0.00019178,2]
[377885651,1754597454962,-400.0,0.00019178,2]
[377885652,1754597454972,-400.0,0.00019178,2]
[377885654,1754597454981,-693.46,0.00019178,2]
[377885657,1754597454990,-400.0,0.00019178,2]
[377885659,1754597455000,-1189.02,0.00019178,2]
[377885661,1754597455008,-3621.58,0.00019178,2]
[377885662,1754597455017,-400.0,0.00019178,2]
[377885665,1754597455027,-400.0,0.00019178,2]
[377885667,1754597455036,-2315.55,0.00019178,2]
[377885668,1754597455045,-400.0,0.00019178,2]
[377885670,1754597455054,-400.0,0.00019178,2]
[377885672,1754597455063,-783.73,0.00019178,2]
[377885674,1754597455073,-1356.68,0.00019178,2]
[377885676,1754597455082,-400.0,0.00019178,2]
[377885678,1754597455091,-420.74,0.00019178,2]
[377885680,1754597455101,-400.0,0.00019178,2]
[377885682,1754597455110,-400.0,0.00019178,2]
[377885684,1754597455119,-742.02,0.00019178,2]
[377885686,1754597455129,-1221.51,0.00019178,2]
[377885688,1754597455138,-400.0,0.00019178,2]
[377885690,1754597455148,-1771.52,0.00019178,2]
[377885692,1754597455157,-1084.28,0.00019178,2]
[377885694,1754597455166,-2030.41,0.00019178,2]
[377885696,1754597455176,-400.0,0.00019178,2]
[377885698,1754597455185,-400.0,0.00019178,2]
[377885700,1754597455195,-400.0,0.00019178,2]
[377885702,1754597455204,-400.0,0.00019178,2]
[377885704,1754597455213,-400.0,0.00019178,2]
[377885706,1754597455223,-400.0,0.00019178,2]
[377885708,1754597455232,-932.49,0.00019178,2]
[377885710,1754597455241,-1016.28,0.00019178,2]
[377885712,1754597455250,-869.32,0.00019178,2]
[377885714,1754597455260,-400.0,0.00019178,2]
[377885716,1754597455269,-400.0,0.00019178,2]
[377885718,1754597455278,-400.0,0.00019178,2]
[377885720,1754597455287,-227.66056294,0.00019178,2]
[377885722,1754597455296,-792.97,0.00019178,2]
[377885724,1754597455305,-2217.39,0.00019178,2]
[377885726,1754597455314,-400.0,0.00019178,2]
[377885728,1754597455323,-429.77,0.00019178,2]
[377885730,1754597455332,-630.23,0.00019178,2]
[377885732,1754597455341,-400.52204934,0.00019178,2]
[377885734,1754597455350,-2412.79,0.00019178,2]
[377885736,1754597455358,-400.0,0.00019178,2]
[377885738,1754597455367,-400.0,0.00019178,2]
[377885740,1754597455376,-400.0,0.00019178,2]
[377885742,1754597455385,-400.0,0.00019178,2]
[377885744,1754597455395,-1019.07,0.00019178,2]
[377885746,1754597455403,-618.82,0.00019178,2]
[377885747,1754597455412,-400.0,0.00019178,2]
[377885749,1754597455422,-400.0,0.00019178,2]
[377885751,1754597455431,-400.0,0.00019178,2]
[377885753,1754597455440,-1237.84,0.00019178,2]
[377885755,1754597455449,-2434.12,0.00019178,2]
[377885757,1754597455459,-903.55,0.00019178,2]
[377885759,1754597455469,-1890.55,0.00019178,2]
[377885761,1754597455478,-591.97,0.00019178,2]
[377885763,1754597455487,-588.17,0.00019178,2]
[377885765,1754597455497,-500.0,0.00019178,2]
[377885767,1754597455506,-500.0,0.00019178,2]
[377885769,1754597455515,-500.0,0.00019178,2]
[377885771,1754597455524,-500.0,0.00019178,2]
[377885773,1754597455533,-400.0,0.00019178,2]
[377885775,1754597455543,-500.0,0.00019178,2]
[377885777,1754597455552,-500.0,0.00019178,2]
[377885779,1754597455562,-400.0,0.00019178,2]
[377885781,1754597455572,-500.0,0.00019178,2]
[377885783,1754597455582,-500.0,0.00019178,2]
[377885785,1754597455592,-500.0,0.00019178,2]
[377885787,1754597455600,-500.0,0.00019178,2]
[377885789,1754597455612,-500.0,0.00019178,2]
[377885791,1754597455622,-931.69,0.00019178,2]
[377885793,1754597455631,-400.0,0.00019178,2]
[377885795,1754597455640,-500.0,0.00019178,2]
[377885797,1754597455650,-500.0,0.00019178,2]
[377885799,1754597455659,-500.0,0.00019178,2]
[377885801,1754597455668,-500.0,0.00019178,2]
[377885814,1754597455759,-500.0,0.00019178,2]
[377885818,1754597455806,-500.0,0.00019178,2]
[377885820,1754597455816,-500.0,0.00019178,2]
[377885822,1754597455825,-881.16,0.00019178,2]
[377885824,1754597455835,-500.0,0.00019178,2]
[377885826,1754597455844,-400.0,0.00019178,2]
[377885828,1754597455854,-500.0,0.00019178,2]
[377885830,1754597455864,-500.0,0.00019178,2]
[377885832,1754597455873,-400.0,0.00019178,2]
[377885834,1754597455883,-500.0,0.00019178,2]
[377885836,1754597455892,-500.0,0.00019178,2]
[377885838,1754597455902,-500.0,0.00019178,2]
[377885840,1754597455912,-500.0,0.00019178,2]
[377885842,1754597455921,-500.0,0.00019178,2]
[377885844,1754597455930,-1697.08,0.00019178,2]
[377885846,1754597455940,-813.07,0.00019178,2]
[377885848,1754597455950,-400.0,0.00019178,2]
[377885850,1754597455960,-500.0,0.00019178,2]
[377885852,1754597455970,-400.0,0.00019178,2]
[377885854,1754597455979,-1715.03,0.00019178,2]
[377885856,1754597455988,-2189.2,0.00019178,2]
[377885858,1754597455997,-400.0,0.00019178,2]
[377885860,1754597456006,-400.0,0.00019178,2]
[377885862,1754597456016,-1900.83,0.00019178,2]
[377885864,1754597456025,-367.59649385,0.00019178,2]
[377885866,1754597456035,-400.0,0.00019178,2]
[377885868,1754597456044,-2943.46,0.00019178,2]
[377885870,1754597456054,-472.9,0.00019178,2]
[377885872,1754597456063,-400.0,0.00019178,2]
[377885874,1754597456075,-1418.27,0.00019178,2]
[377885876,1754597456084,-400.0,0.00019178,2]
[377885877,1754597456094,-400.0,0.00019178,2]
[377885879,1754597456103,-908.23,0.00019178,2]
[377885881,1754597456112,-1941.36,0.00019178,2]
[377885884,1754597456122,-400.0,0.00019178,2]
[377885886,1754597456132,-400.0,0.00019178,2]
[377885887,1754597456142,-214.82650428,0.00019178,2]
[377885889,1754597456151,-2053.94,0.00019178,2]
[377885891,1754597456161,-868.54,0.00019178,2]
[377885894,1754597456170,-1645.13,0.00019178,2]
[377885895,1754597456180,-400.0,0.00019178,2]
[377885897,1754597456189,-675.28,0.00019178,2]
[377885899,1754597456199,-1678.06,0.00019178,2]
[377885901,1754597456211,-734.72,0.00019178,2]
[377885903,1754597456221,-1575.55,0.00019178,2]
[377885905,1754597456230,-400.0,0.00019178,2]
[377885907,1754597456240,-3203.61,0.00019178,2]
[377885909,1754597456250,-1320.5,0.00019178,2]
[377885911,1754597456260,-671.41,0.00019178,2]
[377885913,1754597456270,-400.0,0.00019178,2]